Cogmind - Beta 15 @@@ ROGUE MODE // 2025.10.07 @ 15:08:26 Player: DietSnapple Result: Destroyed by G-34 Mercenary with Small Laser Performance ------------- Evolutions (0) 0 Regions Visited (1) 200 Robots Destroyed (12) 60 Value Destroyed (141) 141 Prototype IDs (0) 0 Alien Tech Used (0) 0 Bonus (0) 0 TOTAL SCORE: 401 Bonus ------- None Cogmind --------- Core Integrity 0/250 Matter 161/500 Energy 100/100 System Corruption 0% Temperature Cool (6) Movement Core (150) Ox2 Location -10/Materials Parts ------- > --- POWER (1) -------- (None) > --- PROPULSION (2) --- (None) > --- UTILITY (2) ------ Small Storage Unit High-capacity Matter Pod > --- WEAPON (2) ------- (None) > --- INVENTORY (8) ---- Light Treads Light Treads ECM Suite Hacking Suite Peak State ------------ > --- POWER ------------ Ion Engine > --- PROPULSION ------- Light Treads Light Treads > --- UTILITY ---------- Small Storage Unit High-capacity Matter Pod > --- WEAPON ----------- Medium Laser Small Laser > --- INVENTORY -------- Light Ion Engine Compact Wheel Compact Wheel Grenade Launcher [Rating: 7] Favorites ----------- Power Ion Engine Engine Ion Engine Propulsion Light Treads Treads Light Treads Wheel Compact Wheel Utility Small Storage Unit Storage Small Storage Unit Weapon Medium Laser Energy Gun Medium Laser Ballistic Gun Light Assault Rifle Launcher Grenade Launcher Build | -11 -10 ------- Run | Yrd Mat Slots Evolved . | . . Power . | . . Propulsion . | . . Utility . | . . Weapon . | . . Parts Attached 14 | 7 7 Power 2 | 1 1 Engine 2 | 1 1 Core . | . . Reactor . | . . Propulsion 6 | 2 4 Treads 4 | 2 2 Leg . | . . Wheel 2 | . 2 Hover . | . . Flight . | . . Utility 2 | 1 1 Device . | . . Storage 2 | 1 1 Processor . | . . Hackware . | . . Protection . | . . Artifact . | . . Weapon 4 | 3 1 Energy Gun 2 | 2 . Energy Cannon . | . . Ballistic Gun 1 | 1 . Ballistic Cannon . | . . Launcher 1 | . 1 Special Weapon . | . . Impact Weapon . | . . Slashing Weapon . | . . Piercing Weapon . | . . Special Melee Weapon . | . . Unidentified Prototypes . | . . Parts Lost 5 | . 5 Power 1 | . 1 Propulsion 2 | . 2 Utility . | . . Weapon 2 | . 2 Highest Loss Streak 5 | . 5 To Critical Strikes . | . . Average Backups 3 | 2 3 Power . | . . Propulsion 1 | 1 1 Utility . | . 1 Weapon . | . . Tool/Special . | . . Unused Backups 5 | 1 4 Power . | . . Propulsion 3 | 1 2 Utility 2 | . 2 Weapon . | . . Tool/Special . | . . Average Slot Usage (%) 87 | . 87 Engine 12 | . 12 Treads 23 | . 23 Wheel 2 | . 2 Storage 25 | . 25 Energy Gun 13 | . 13 Launcher 8 | . 8 Peak Build Rating 7 | 6 7 Average Rating 5 | 4 6 On Entrance 3 | . 6 Naked Turns . | . . Heaviest Build 17 | 13 17 Greatest Support 40 | 40 40 Greatest Overweight (x) . | . . Average Overweight (x) . | . . Largest Inventory Capacity 8 | 8 8 Average Capacity 7 | 5 8 Most Carried 5 | 3 5 Average Carried 3 | 2 3 Final Capacity 8 | 8 8 Final Carried 4 | 3 4 Class Distribution -------------------- 100% | Mutant Dominant Class ---------------- Mutant | -10/Materials Resources | -11 -10 ----------- Run | Yrd Mat Matter Collected 276 | 148 128 Remotely . | . . Salvage Created 172 | . 172 Parts 19 | . 19 Haulers Intercepted . | . . Recyclers Shooed . | . . Parts Field Recycled . | . . Retrieved Matter . | . . Parts Self-Destructed . | . . Prevented . | . . Kills | -11 -10 ------- Run | Yrd Mat Combat Hostiles Destroyed 10 | . 10 Guns 9 | . 9 AOE 1 | . 1 Classes Destroyed 4 | . 4 Worker 1 | . 1 Operator 1 | . 1 Swarmer 9 | . 9 Grunt 1 | . 1 Best Kill Streak 7 | . 7 Combat Bots Only 6 | . 6 Max Kills in Single Turn 1 | . 1 Gunslinging . | . . Exploded 1 | . 1 Melee . | . . Uniques/NPCs Destroyed . | . . Combat | -11 -10 -------- Run | Yrd Mat Hostile Shots Fired 128 | . 128 Missed 25 | . 25 Hits 103 | . 103 Projectile 103 | . 103 Damage Taken 1002 | . 1002 Core 250 | . 250 Absorbed by Shields . | . . Core Remaining (%) 100 | 100 . Volleys Fired 36 | . 36 Largest 2 | . 2 Hottest 90 | . 90 Shots Fired 40 | . 40 Gun 32 | . 32 Cannon . | . . Launcher 8 | . 8 Special . | . . Kinetic . | . . Thermal 32 | . 32 Explosive 8 | . 8 Electromagnetic . | . . Robot Hit Streak 6 | . 6 Robot Miss Streak 3 | . 3 Penetration Max . | . . Secondary Targets . | . . Shots Hit Robots 23 | . 23 Core Hits 13 | . 13 Critical Kills . | . . Critical Parts Destroyed . | . . Critical Strikes . | . . Melee Attacks . | . . Impact . | . . Slashing . | . . Piercing . | . . Sneak Attacks . | . . Combat Hostiles . | . . Follow-up Attacks . | . . Damage Inflicted 465 | . 465 Guns 225 | . 225 Cannons . | . . Explosions 240 | . 240 Melee . | . . Ramming . | . . Kinetic . | . . Thermal 225 | . 225 Explosive 240 | . 240 Electromagnetic . | . . Impact . | . . Slashing . | . . Piercing . | . . Highest Corruption . | . . Average Corruption . | . . Corruption Purged . | . . Corruption Blocked . | . . Overload Shots . | . . Overflow Damage 17 | . 17 Projectiles . | . . Explosions 17 | . 17 Melee . | . . Knockbacks . | . . Impact . | . . Kinetic . | . . Secondary . | . . Self-Inflicted Damage . | . . Shots . | . . Rammed . | . . Targets Rammed . | . . Kicked . | . . Crushed . | . . Highest Temperature 210 | . 210 Average Temperature 84 | . 84 Received Heat Transfer 348 | . 348 Siege Activations . | . . Martial Activations . | . . Shielding Activations . | . . Robots Disrupted . | . . Combat Hostiles . | . . Robots Corrupted . | . . Combat Hostiles . | . . Parts Fried . | . . Impact Corruptions . | . . Robots Melted . | . . Combat Hostiles . | . . Parts Melted . | . . Heat Transferred 642 | . 642 Parts Sabotaged . | . . Parts Stolen . | . . Parts Stripped . | . . Power Chain Reactions . | . . Alert | -11 -10 ------- Run | Yrd Mat Maximum Alert Level 1 | . 1 Low Security (%) 91 | 100 89 Level 1 8 | . 10 Level 2 . | . . Level 3 . | . . Level 4 . | . . Level 5 . | . . High Security . | . . Max Security . | . . Peak Influence 217 | . 217 Initial . | . . Average 91 | . 120 Influence Increases 312 | . 312 Destroy 0b10 Robot/C 200 | . 200 Destroy 0b10 Robot/NC 10 | . 10 Destroy Leader 40 | . 40 Destroy Structure 32 | . 32 Partial Spotted 15 | . 15 Lose Combat Pursuer 15 | . 15 Influence Decreases 260 | . 260 Time Decay 210 | . 210 Lost Part 50 | . 50 Squads Dispatched 2 | . 2 Investigation 1 | . 1 Extermination . | . . Reinforcement 1 | . 1 Assault . | . . Garrison . | . . Intercept . | . . Searches Triggered . | . . Construction Impeded . | . . Haulers Reinforced . | . . Active Scanning Responses . | . . Cargo Convoy Interrupts . | . . Stealth | -11 -10 --------- Run | Yrd Mat Distress Signals 1 | . 1 Communications Jammed . | . . Distress Signals . | . . Times Spotted 20 | . 20 Peak Tracking Total 6 | . 6 Tactical Retreats 1 | . 1 Traps | -11 -10 ------- Run | Yrd Mat Traps Triggered 2 | . 2 Indirectly . | . . Trap Hack Attempts . | . . Triggered . | . . Disarmed . | . . Reprogrammed . | . . Reused . | . . Traps Extracted . | . . Installed . | . . Triggered . | . . Machines | -11 -10 ---------- Run | Yrd Mat Machines Disabled . | . . Max in Single Turn . | . . Machines Repaired . | . . Machines Dismantled . | . . Machines Sabotaged . | . . Overloaded Fab Kills . | . . Hacking | -11 -10 --------- Run | Yrd Mat Machines Accessed 1 | . 1 Terminals 1 | . 1 Fabricators . | . . Repair Stations . | . . Recycling Units . | . . Scanalyzers . | . . Garrison Access . | . . Total Hacks 1 | . 1 Successful . | . . Failed 1 | . 1 Catastrophic 1 | . 1 Database Lockouts . | . . Manual . | . . Terminals 1 | . 1 Fabricators . | . . Repair Stations . | . . Recycling Units . | . . Scanalyzers . | . . Garrison Access . | . . Terminal Hacks . | . . Fabricator Hacks . | . . Repair Station Hacks . | . . Recycling Unit Hacks . | . . Scanalyzer . | . . Garrison Access Hacks . | . . Unauthorized Hacks . | . . Terminals . | . . Fabricators . | . . Repair Stations . | . . Recycling Units . | . . Scanalyzers . | . . Garrison Access . | . . Data Cores Recovered . | . . Used . | . . Hacking Detections . | . . Full Trace Events . | . . Feedback Events . | . . Feedback Blocked . | . . Robot Schematics Acquired . | . . Robots Built . | . . Authchips . | . . Time . | . . Total Robot Build Rating . | . . Part Schematics Acquired . | . . Parts Built . | . . Authchips . | . . Time . | . . Total Part Build Rating . | . . Parts Repaired . | . . Time . | . . Parts Recycled . | . . Recycled Matter . | . . Retrieved Matter . | . . Retrieved Components . | . . Parts Scanalyzed . | . . Part Schematics Acquired . | . . Parts Damaged . | . . Bothacking | -11 -10 ------------ Run | Yrd Mat Used RIF Installer . | . . Robots Hacked . | . . Non-combat . | . . Combat . | . . Robot Hacks Applied . | . . Relay Couplers Released . | . . Fabnet Peak Effective % . | . . Robots Rewired . | . . Allies Hacked . | . . Hacks Repelled . | . . Allies | -11 -10 -------- Run | Yrd Mat Total Allies . | . . Largest Group . | . . Highest-Rated Group . | . . Highest-Rated Ally . | . . Total Orders . | . . Ally Attacks . | . . Total Damage . | . . Kills . | . . Allies Corrupted . | . . Allies Melted . | . . Intel | -11 -10 ------- Run | Yrd Mat Active Infowar (turns) . | . . Robot Analysis Total . | . . Derelict Logs Recovered . | . . Drone Launches . | . . Drone Recoveries . | . . Exploration | -11 -10 ------------- Run | Yrd Mat Turns Passed 779 | 187 592 Spaces Moved 401 | 113 288 Core 7 | 7 . Treads 348 | 106 242 Legs . | . . Wheels 46 | . 46 Hover . | . . Flight . | . . Fastest Speed 50 | 50 100 Average Speed 151 | 153 150 Slowest Speed 160 | 160 160 Overloaded Moves . | . . Propulsion Burnouts . | . . Robots Hopped . | . . Potential Cave-ins . | . . Cave-ins Triggered . | . . Exploration Rate (%) 31 | 6 57 Regions Visited 1 Branch Regions . Pre-discovered Areas . | . . Known Exits Taken . | . . Unknown Exits Taken 1 | 1 . Scrap Searched . | . . Spaces Dug . | . . Terrain Destroyed 29 | . 29 Melee . | . . Projectile . | . . AOE 29 | . 29 Terrain Rammed . | . . Walls Destroyed . | . . Machines Disabled . | . . Actions | -11 -10 --------- Run | Yrd Mat Total 531 | 124 407 Wait 64 | . 64 Move 400 | 112 288 Hop . | . . Pick Up 9 | 4 5 Fast Attach 8 | 6 2 Attach 5 | . 5 Detach 3 | . 3 Swap 3 | 1 2 Drop 3 | 1 2 Fire 36 | . 36 Melee . | . . Ram . | . . Kick . | . . Crush . | . . Escape Stasis . | . . Rewire . | . . Trap . | . . Miscellaneous . | . . Route ------- -11/Scrapyard -10/Materials (discovered 2 exits: [*Mat] / [*Sub]) History --------- Turn | Location | Event 4 | -11/Scrapyard | Discovered new exit (range 16) 188 | -11/Scrapyard | Entered Materials 306 | -10/Materials | Build established: Mutant 494 | -10/Materials | Discovered new exit (range 15) 569 | -10/Materials | Discovered new exit (range 13) 748 | -10/Materials | Core integrity fell below 50% 774 | -10/Materials | Core integrity fell below 20% 780 | -10/Materials | Destroyed by G-34 Mercenary with Small Laser Last Messages --------------- 00535_ U-05 Engineer builds a Wall. 00536_ U-05 Engineer lays Concrete. 00541_ U-05 Engineer builds a Wall. 00542_ U-05 Engineer lays Concrete. 00543_ Acquired 15 matter. 00544_ U-05 Engineer lays Concrete. 00565_ The unstable cave ceiling collapses. 00565_ U-05 Engineer lays Concrete. 00569_ EXIT=FOUND 00703_ Triggered Alarm Trap. 00703_ An alarm sounds. 00703_ ALERT: Alarm triggered, dispatching investigation squad. 00711_ Connecting with Terminal... 00711_ Current location identified: Materials 00711_ Connecting with Terminal... 00727_ Med. Laser destroyed. 00729_ Lgt. Ion Engine destroyed. 00758_ Grenade Launcher destroyed. 00760_ U-05 Engineer lays Concrete. 00772_ Lgt. Treads destroyed. Map ----- +----------------------------------------------------+ | ?????????????????????????????????????????????????? | | ?????????????????????????????????????????????????? | | ?????????????????????????????????????????????????? | | ?????????????????????????????????????????????????? | | ???????????????????????####+#????????????????????? | | ???????????????????????# ????? ???????????????? | | ???????????????????????# ??? #?###?##???????? | | ???????????????????????# ??? #?# #??????? | | ???????????????????????# ??? #?# ??????? | | ???????????????????????# ""??" #?#! " ??????? | | ???????????????????????# """?" #?? ???????? | | ???????????????????????# """"" #?? ! #######? | | ???????????????????????# """"" #??# ## #? | | ???????????????????????# """"" #??# ## #? | | ?????????????########### """"" #??# ##"" #? | | ?????????????# # """"" #??# ##"Y #? | | ?????????????# # #??# ##"" #? | | ?????????????# # #??# ## ??? | | ?????????????# + #### ###+####? | | ?????????????# # #? | | ?????????????# # ## | | ?????????????# # | | ?????????????# # ggg####+################# | | ?????????????##+##+##### # ??? ???? | | ??????????????# #?###k # ?# ?? | | ??????????????# #?#"" @ # ??+ | | ??????????????# #?#T # ??# | | ??????????????# #?### # """?# | | ??????????????# ##### #! """ # | | ??????????????# # """ # ^^ | | ????#######???# # # | | ??#<# ?### ########## | | ???# # | | ???# # ?? | | ???# ???? | | ??????##### # #????????? | | ??????????### t #????????? | | ????????????## #################### #????????? | | ?????????????# #??????############# #????????? | | ?????????????# ######## # #????????? | | ?????????????# # = # """" # #????????? | | ?????????????# #== # """" # #????????? | | ?????????????# #= # """" !! *# [ # ??????? | | ??????######## # # ! [*# %=# """?? | | ??????# # + # =*[+ ^^+ | | ??????# # # !# %===#^^%# | | ??????# # ###############+####=[*#????????? | | ??????# "Y" # # ## # #### #????????? | | ??????# """ # ## """ # #????????? | | ??????# + """ ## """ # #????????? | +----------------------------------------------------+ Best States ------------- Heat Dissipation 25 Energy Generation 10 Energy Capacity 250 Matter Stores 232 Matter Capacity 500 Sight Range 16 Terrain Scan Density 10 Evasion (%) 40 Recoil Reduction 2 Item Schematics ----------------- None Robot Schematics ------------------ None Fabricated ------------ Nothing Repaired ---------- Nothing Alien Tech Used ----------------- None Achievements -------------- None Challenges ------------ None Game ------ Seed FlightMicroCanceller Manual? 0 Play Time 00:11:56 Cumulative 18.5 hours Start 2025.10.07 @ 13:46:14 End 2025.10.07 @ 15:08:26 Sessions 1 Manual Loads 0 Difficulty Rogue Special Mode None Game No. 55 Rogue 48 Adventurer 7 Explorer 0 Win Type - Total 0 Types 0/0/0/0/0/0/0/0/0/0 Lore% 4 Gallery% 19 Achievement% 19 Wizard Run 0 Options --------- Layout 0 ASCII 0 Keyboard 0 Movement Vi Keybinds 0 Fullscreen 1 Font 18/SmallcapsGlow Map View 112x50 Zoom Use 20% Tactical HUD 1 Map Filters NONE Filters NONE Steam 1 RUN: 25bf04ef-b7d4-4e64-b07c-6a3e5e7dfa2b